Cogmind - Beta 9.2 @@@ ROGUE MODE // 2019.12.08 @ 01:45:50 Player: Andru7428 Result: Destroyed by GO-3FK(M) with Battle Rifle Performance ------------- Evolutions (1) 500 Regions Visited (5) 1000 Robots Destroyed (71) 355 Value Destroyed (1317) 1317 Prototype IDs (5) 100 Alien Tech Used (0) 0 Bonus (590) 590 TOTAL SCORE: 3862 Bonus ------- Met Imprinter 300 Was Imprinted 300 Friendly Fire -10 Cogmind --------- Core Integrity 0/400 Matter 22/300 Energy 90/100 System Corruption 1% Temperature Cool (243) Movement Core (450) Ox8 Location -7/Zion Parts ------- > --- POWER (1) -------- (None) > --- PROPULSION (3) --- (None) > --- UTILITY (3) ------ Large Storage Unit Improved Targeting Computer > --- WEAPON (2) ------- Bore Cannon > --- INVENTORY (10) --- Improved Deuterium Engine Carbon-fiber Leg Improved Heat Sink Medium Storage Unit Minigun Minigun Makeshift Shrapnel Gun Advanced Assault Cannon Peak State ------------ > --- POWER ------------ Light Ion Engine > --- PROPULSION ------- Aluminum Leg Makeshift Leg Flexi-carbon Leg > --- UTILITY ---------- Large Storage Unit Improved Targeting Computer Hardened Light Armor Plating > --- WEAPON ----------- Minigun Advanced Assault Cannon > --- INVENTORY -------- Improved Deuterium Engine Aluminum Leg Improved Heat Sink Medium Storage Unit Minigun Minigun Minigun Makeshift Shrapnel Gun Grenade Launcher Rocket Launcher [Rating: 25] Favorites ----------- Power Light Ion Engine Engine Light Ion Engine Propulsion Aluminum Leg Leg Aluminum Leg Utility Improved Targeting Computer Device Improved Heat Sink Storage Medium Storage Unit Processor Improved Targeting Computer Protection Hardened Light Armor Plating Weapon Minigun Energy Gun Improved Medium Laser Ballistic Gun Minigun Ballistic Cannon Advanced Assault Cannon Launcher Grenade Launcher Build | -11 -10 -10 -9 -9 -7 ------- Run | Scr Mat Min Mat Min Zio Slots Evolved 2 | . . . 2 . . Power . | . . . . . . Propulsion 1 | . . . 1 . . Utility 1 | . . . 1 . . Weapon . | . . . . . . Parts Attached 59 | 6 7 7 24 8 7 Power 3 | 1 . 1 1 . . Engine 3 | 1 . 1 1 . . Core . | . . . . . . Reactor . | . . . . . . Propulsion 15 | 2 1 2 7 1 2 Treads . | . . . . . . Leg 15 | 2 1 2 7 1 2 Wheel . | . . . . . . Hover . | . . . . . . Flight . | . . . . . . Utility 7 | 1 1 . 4 . 1 Device 1 | . . . 1 . . Storage 3 | 1 . . 1 . 1 Processor 1 | . 1 . . . . Hackware . | . . . . . . Protection 2 | . . . 2 . . Artifact . | . . . . . . Weapon 34 | 2 5 4 12 7 4 Energy Gun 1 | . . . 1 . . Energy Cannon . | . . . . . . Ballistic Gun 17 | 2 1 2 8 3 1 Ballistic Cannon 5 | . 2 1 . 1 1 Launcher 11 | . 2 1 3 3 2 Special Weapon . | . . . . . . Impact Weapon . | . . . . . . Slashing Weapon . | . . . . . . Piercing Weapon . | . . . . . . Special Melee Weapon . | . . . . . . Unidentified Prototypes 1 | . . . 1 . . Parts Lost 9 | . . . 1 . 8 Power 1 | . . . . . 1 Propulsion 3 | . . . . . 3 Utility 1 | . . . . . 1 Weapon 4 | . . . 1 . 3 Highest Loss Streak 8 | . . . 1 . 8 Average Slot Usage (%) 99 | . 96 100 99 100 99 Engine 11 | . 14 14 11 11 10 Leg 31 | . 28 28 32 33 32 Storage 11 | . 14 14 11 11 11 Processor 11 | . 10 14 11 11 11 Protection 8 | . . . 9 11 10 Ballistic Gun 15 | . 22 13 20 16 11 Ballistic Cannon 7 | . 5 13 1 4 10 Naked Turns . | . . . . . . Heaviest Build 34 | 11 13 13 22 26 34 Greatest Support 50 | 20 20 20 30 30 50 Greatest Overweight (x) 2 | 2 . . . . . Average Overweight (x) . | . . . . . . Largest Inventory Capacity 10 | 6 6 6 8 8 10 Average Capacity 7 | 5 6 6 7 8 9 Most Carried 10 | 6 6 6 8 8 10 Average Carried 7 | 3 5 5 7 7 8 Final Capacity 10 | 6 6 6 8 8 10 Final Carried 8 | 4 6 6 8 8 8 Class Distribution -------------------- 79% | Mutant 16% | Messiah-Mutant 4% | Scavenger-Mutant Dominant Class ---------------- Mutant | -10/Materials Mutant | -10/Mines Mutant | -9/Materials Mutant | -9/Mines Mutant | -7/Zion Resources | -11 -10 -10 -9 -9 -7 ----------- Run | Scr Mat Min Mat Min Zio Matter Collected 1699 | 174 130 290 761 292 52 Remotely . | . . . . . . Salvage Created 1870 | . 179 220 1125 341 5 Parts 133 | . 15 17 75 26 . Haulers Intercepted 4 | . . . 4 . . Recyclers Shooed 12 | . . 1 8 3 . Parts Field Recycled . | . . . . . . Retrieved Matter . | . . . . . . Parts Self-Destructed . | . . . . . . Prevented . | . . . . . . Kills | -11 -10 -10 -9 -9 -7 ------- Run | Scr Mat Min Mat Min Zio Combat Hostiles Destroyed 45 | . 7 8 19 11 . Guns 16 | . . 1 12 3 . Cannons 7 | . 2 2 2 1 . AOE 22 | . 5 5 5 7 . Classes Destroyed 12 | . 4 2 4 1 1 Worker 2 | . . 1 1 . . Builder 1 | . . . 1 . . Tunneler 3 | . . 1 1 1 . Hauler 4 | . . . 4 . . Recycler 11 | . 1 2 4 4 . Watcher 4 | . 1 . 3 . . Swarmer 22 | . 5 6 4 7 . Grunt 16 | . 2 2 9 3 . Duelist 1 | . . . 1 . . Sentry 5 | . . . 5 . . Zionite 1 | . . . . . 1 Assembled 1 | . . . . 1 . Best Kill Streak 9 | . 4 7 9 6 1 Combat Bots Only 7 | . 4 7 4 4 . Max Kills in Single Turn 3 | . 3 2 3 3 1 Gunslinging 1 | . . . 1 . . Exploded 3 | . 3 2 2 2 . Melee . | . . . . . . Uniques/NPCs Destroyed . | . . . . . . Combat | -11 -10 -10 -9 -9 -7 -------- Run | Scr Mat Min Mat Min Zio Damage Taken 2026 | . 183 186 545 240 872 Core 504 | . . 100 81 33 290 Absorbed by Shields . | . . . . . . Core Remaining (%) 80 | 100 . 60 . . . Volleys Fired 147 | . 13 19 70 34 11 Largest 2 | . 2 2 2 2 2 Hottest 81 | . 55 65 81 58 58 Shots Fired 269 | . 24 34 133 59 19 Gun 193 | . 16 14 113 41 9 Cannon 45 | . 5 16 13 9 2 Launcher 31 | . 3 4 7 9 8 Special . | . . . . . . Kinetic 234 | . 21 30 122 50 11 Thermal 4 | . . . 4 . . Explosive 31 | . 3 4 7 9 8 Electromagnetic . | . . . . . . Robot Hit Streak 13 | . 9 8 13 9 3 Robot Miss Streak 5 | . 2 1 4 5 . Penetration Max . | . . . . . . Secondary Targets 1 | . . . 1 . . Max Gunslinging Chain 1 | . . . 1 . . Shots Hit Robots 149 | . 14 25 86 22 2 Core Hits 101 | . 12 15 47 22 5 Critical Hits 2 | . . . 1 . 1 Critical Kills . | . . . . . . Critical Parts Destroyed 2 | . . . 1 . 1 Melee Attacks . | . . . . . . Impact . | . . . . . . Slashing . | . . . . . . Piercing . | . . . . . . Sneak Attacks . | . . . . . . Combat Hostiles . | . . . . . . Follow-up Attacks . | . . . . . . Damage Inflicted 4203 | . 465 723 1864 1057 94 Guns 1665 | . 108 145 1137 275 . Cannons 676 | . 84 221 181 158 32 Explosions 1862 | . 273 357 546 624 62 Melee . | . . . . . . Ramming . | . . . . . . Kinetic 2324 | . 192 366 1301 433 32 Thermal 17 | . . . 17 . . Explosive 1862 | . 273 357 546 624 62 Electromagnetic . | . . . . . . Impact . | . . . . . . Slashing . | . . . . . . Piercing . | . . . . . . Highest Corruption 1 | . . . . . 1 Average Corruption 1 | . . . . . 1 Corruption Purged . | . . . . . . Overload Shots . | . . . . . . Overflow Damage 90 | . 12 18 23 37 . Projectiles 5 | . . . 2 3 . Explosions 85 | . 12 18 21 34 . Melee . | . . . . . . Knockbacks 4 | . 1 2 . 1 . Impact . | . . . . . . Kinetic 4 | . 1 2 . 1 . Secondary . | . . . . . . Self-Inflicted Damage 72 | . 17 28 . 27 . Shots 3 | . 1 1 . 1 . Rammed . | . . . . . . Targets Rammed . | . . . . . . Kicked . | . . . . . . Crushed . | . . . . . . Highest Temperature 243 | . 29 17 140 75 243 Average Temperature 35 | . 16 6 30 21 138 Received Heat Transfer 779 | . 51 66 219 63 380 Siege Activations . | . . . . . . Robots Corrupted . | . . . . . . Combat Hostiles . | . . . . . . Parts Fried . | . . . . . . Impact Corruptions . | . . . . . . Robots Melted . | . . . . . . Combat Hostiles . | . . . . . . Parts Melted . | . . . . . . Heat Transferred 37 | . . . 37 . . Parts Sabotaged . | . . . . . . Parts Stolen . | . . . . . . Parts Stripped . | . . . . . . Power Chain Reactions . | . . . . . . Missiles Intercepted . | . . . . . . Alert | -11 -10 -10 -9 -9 -7 ------- Run | Scr Mat Min Mat Min Zio Peak Influence 354 | . 227 283 294 354 . Average Influence 135 | . 57 155 117 183 . Maximum Alert Level 1 | . 1 1 1 1 . Low Security (%) 76 | 100 97 67 79 69 . Level 1 23 | . 2 32 20 30 . Level 2 . | . . . . . . Level 3 . | . . . . . . Level 4 . | . . . . . . Level 5 . | . . . . . . High Security . | . . . . . . Max Security . | . . . . . . Squads Dispatched 2 | . 1 . 1 . . Investigation 2 | . 1 . 1 . . Extermination . | . . . . . . Reinforcement . | . . . . . . Assault . | . . . . . . Garrison . | . . . . . . Intercept . | . . . . . . Construction Impeded . | . . . . . . Haulers Reinforced . | . . . . . . Stealth | -11 -10 -10 -9 -9 -7 --------- Run | Scr Mat Min Mat Min Zio Distress Signals 4 | . 1 . 3 . . Communications Jammed . | . . . . . . Distress Signals . | . . . . . . Times Spotted 67 | . 12 9 30 10 6 Peak Tracking Total 5 | . 5 3 5 4 5 Tactical Retreats 2 | . . 2 . . . Traps | -11 -10 -10 -9 -9 -7 ------- Run | Scr Mat Min Mat Min Zio Traps Triggered 5 | . 3 . 1 1 . Indirectly . | . . . . . . Trap Hack Attempts . | . . . . . . Triggered . | . . . . . . Disarmed . | . . . . . . Reprogrammed . | . . . . . . Reused . | . . . . . . Traps Extracted . | . . . . . . Installed . | . . . . . . Triggered . | . . . . . . Machines | -11 -10 -10 -9 -9 -7 ---------- Run | Scr Mat Min Mat Min Zio Machines Disabled 4 | . 2 . 1 1 . Max in Single Turn 1 | . 1 . 1 1 . Machines Sabotaged . | . . . . . . Garrisons Compromised . | . . . . . . Overloaded Fab Kills . | . . . . . . Fab Network Shutdowns . | . . . . . . Hacking | -11 -10 -10 -9 -9 -7 --------- Run | Scr Mat Min Mat Min Zio Machines Accessed 10 | . . . 8 1 1 Terminals 5 | . . . 5 . . Fabricators . | . . . . . . Repair Stations 1 | . . . 1 . . Recycling Units 1 | . . . 1 . . Scanalyzers 1 | . . . 1 . . Garrison Access . | . . . . . . Total Hacks 33 | . . . 27 1 5 Successful 25 | . . . 19 1 5 Failed 8 | . . . 8 . . Catastrophic . | . . . . . . Database Lockouts . | . . . . . . Manual 7 | . . . 7 . . Terminals 18 | . . . 18 . . Fabricators . | . . . . . . Repair Stations 2 | . . . 2 . . Recycling Units 1 | . . . 1 . . Scanalyzers 6 | . . . 6 . . Garrison Access . | . . . . . . Terminal Hacks 18 | . . . 12 1 5 Part Schematic 5 | . . . . . 5 Robot Analysis 1 | . . . 1 . . Prototype ID Bank 2 | . . . 2 . . Open Door 1 | . . . . 1 . Branch Access Points 1 | . . . 1 . . Terminal Index 1 | . . . 1 . . Unreport Threat 1 | . . . 1 . . Locate Traps 1 | . . . 1 . . Dispatch Records 1 | . . . 1 . . Surveillance Status 1 | . . . 1 . . Registered Components 1 | . . . 1 . . Registered Prototypes 1 | . . . 1 . . Zone Layout 1 | . . . 1 . . Fabricator Hacks . | . . . . . . Repair Station Hacks 2 | . . . 2 . . Scan Component 1 | . . . 1 . . Repair 1 | . . . 1 . . Recycling Unit Hacks . | . . . . . . Scanalyzer 5 | . . . 5 . . Insert Component 2 | . . . 2 . . Analyze 3 | . . . 3 . . Garrison Access Hacks . | . . . . . . Unauthorized Hacks . | . . . . . . Terminals . | . . . . . . Fabricators . | . . . . . . Repair Stations . | . . . . . . Recycling Units . | . . . . . . Scanalyzers . | . . . . . . Garrison Access . | . . . . . . Data Cores Recovered . | . . . . . . Used . | . . . . . . Hacking Detections 8 | . . . 8 . . Full Trace Events . | . . . . . . Feedback Events . | . . . . . . Feedback Blocked . | . . . . . . Robot Schematics Acquired . | . . . . . . Robots Built . | . . . . . . Matter . | . . . . . . Time . | . . . . . . Total Robot Build Rating . | . . . . . . Part Schematics Acquired 7 | . . . 2 . 5 Parts Built . | . . . . . . Matter . | . . . . . . Time . | . . . . . . Total Part Build Rating . | . . . . . . Parts Repaired 1 | . . . 1 . . Time 26 | . . . 26 . . Parts Recycled . | . . . . . . Recycled Matter . | . . . . . . Retrieved Matter . | . . . . . . Retrieved Components . | . . . . . . Parts Scanalyzed 2 | . . . 2 . . Part Schematics Acquired 2 | . . . 2 . . Parts Damaged . | . . . . . . Bothacking | -11 -10 -10 -9 -9 -7 ------------ Run | Scr Mat Min Mat Min Zio Used RIF Installer . | . . . . . . Robots Hacked . | . . . . . . Non-combat . | . . . . . . Combat . | . . . . . . Robot Hacks Applied . | . . . . . . Relay Couplers Released . | . . . . . . Robots Rewired . | . . . . . . Allies Hacked . | . . . . . . Hacks Repelled . | . . . . . . Allies | -11 -10 -10 -9 -9 -7 -------- Run | Scr Mat Min Mat Min Zio Total Allies 4 | . . . . . 4 Largest Group 4 | . . . . . 4 Highest-Rated Group 154 | . . . . . 154 Highest-Rated Ally 39 | . . . . . 39 Total Orders . | . . . . . . Ally Attacks . | . . . . . . Total Damage . | . . . . . . Kills . | . . . . . . Allies Corrupted . | . . . . . . Allies Melted . | . . . . . . Intel | -11 -10 -10 -9 -9 -7 ------- Run | Scr Mat Min Mat Min Zio Robot Analysis Total 1 | . . . 1 . . Derelict Logs Recovered 3 | . . 1 . 1 1 Drone Launches . | . . . . . . Drone Recoveries . | . . . . . . Exploration | -11 -10 -10 -9 -9 -7 ------------- Run | Scr Mat Min Mat Min Zio Turns Passed 5333 | 71 366 873 1313 957 1753 Spaces Moved 3448 | 60 248 632 818 512 1178 Core 27 | 27 . . . . . Treads . | . . . . . . Legs 3421 | 33 248 632 818 512 1178 Wheels . | . . . . . . Hover . | . . . . . . Flight . | . . . . . . Fastest Speed 50 | 50 120 120 120 120 120 Average Speed 121 | 93 120 120 120 120 124 Slowest Speed 150 | 150 120 120 120 120 126 Overloaded Moves . | . . . . . . Propulsion Burnouts . | . . . . . . Robots Hopped . | . . . . . . Cave-ins Triggered . | . . . . . . Exploration Rate (%) 59 | 4 40 98 62 71 84 Regions Visited 5 Branch Regions 3 Pre-discovered Areas 2 | . . . . . 2 Known Exits Taken 1 | . . . 1 . . Unknown Exits Taken 4 | 1 1 1 . 1 . Scrap Searched 3 | . . 1 . . 2 Spaces Dug . | . . . . . . Terrain Destroyed 177 | . 17 33 46 76 5 Melee . | . . . . . . Projectile 5 | . . . . 5 . AOE 172 | . 17 33 46 71 5 Actions | -11 -10 -10 -9 -9 -7 --------- Run | Scr Mat Min Mat Min Zio Total 4364 | 75 293 712 1033 801 1450 Wait 648 | . 12 50 96 244 246 Move 3443 | 59 247 631 817 511 1178 Hop . | . . . . . . Pick Up 37 | 10 8 1 12 2 4 Fast Attach 4 | . . . 4 . . Attach 11 | 6 1 . 2 . 2 Detach . | . . . . . . Swap 44 | . 6 7 18 8 5 Drop 30 | . 6 4 14 2 4 Fire 147 | . 13 19 70 34 11 Melee . | . . . . . . Ram . | . . . . . . Kick . | . . . . . . Crush . | . . . . . . Escape Stasis . | . . . . . . Rewire . | . . . . . . Trap . | . . . . . . Miscellaneous . | . . . . . . Route ------- -11/Scrapyard -10/Materials -10/Mines (discovered 2 exits: *Mat x2) -9/Materials (discovered 4 exits: [*Mat x2] / *Min x2) -9/Mines (discovered 2 exits: [*Mat] / *Zio) -7/Zion History --------- Turn | Location | Event 15 | -11/Scrapyard | Discovered new exit (range 15) 72 | -11/Scrapyard | Entered Materials 82 | -10/Materials | Discovered new exit (range 15) 330 | -10/Materials | Build established: Mutant 438 | -10/Materials | Entered Mines 461 | -10/Mines | Destroyed 7 combat bots 596 | -10/Mines | Discovered new exit (range 7) 986 | -10/Mines | Learned Materials stockpile data 1163 | -10/Mines | Discovered new exit (range 4) 1170 | -10/Mines | Received a Rocket Launcher from a helpful Derelict 1311 | -10/Mines | Entered Materials 1311 | -9/Materials | Evolved 2 slots: Propulsion x1, Utility x1 1647 | -9/Materials | Repaired Aluminum Leg 2165 | -9/Materials | Discovered new exit (range 12) 2497 | -9/Materials | Discovered new exit (range 14) 2561 | -9/Materials | Identified exit to Mines 2624 | -9/Materials | Entered Mines 2637 | -9/Mines | Met a Derelict bent on vengeance 2656 | -9/Mines | Discovered new exit (range 14) 2781 | -9/Mines | Learned location of 1 exit from Proximity Caves 2900 | -9/Mines | A Derelict revealed a hidden shortcut to a safe place 2929 | -9/Mines | Met a Derelict who couldn't figure out how to use a Trap Extractor 3432 | -9/Mines | Assembled infested the area 3437 | -9/Mines | Assisted by a Guerilla fighting off Assembled 3581 | -9/Mines | Entered Zion 3956 | -7/Zion | Learned Factory stockpile data 4439 | -7/Zion | Imprinted 4441 | -7/Zion | Declared Zion's savior 4728 | -7/Zion | Build established: Messiah-Mutant 4742 | -7/Zion | Learned location of Warlord (-5) 4821 | -7/Zion | Learned location of Quarantine (-2) 5306 | -7/Zion | Attacked by Zionites 5321 | -7/Zion | Core integrity fell below 50% 5330 | -7/Zion | Core integrity fell below 20% 5334 | -7/Zion | Destroyed by GO-3FK(M) with Battle Rifle Last Messages --------------- Schematic downloaded. 05164_ J6-MBR(z) fiddles with the Twisted Machinery. 05232_ X4-17N(z) plays with the Twisted Machinery. 05245_ J6-MBR(z) toys with the Twisted Machinery. 05306_ PUBLIC SERVICE ANNOUNCEMENT: Zion is under attack! Defend our home! 05307_ Rocket Launcher destroyed. 05311_ Hrd. Light Armor Plating destroyed. 05317_ Mak. Leg destroyed. 05322_ S9-BEV(z) destroyed. 05325_ Lgt. Ion Engine destroyed. 05326_ Critical hit. 05326_ Flexi-carbon Leg destroyed. 05329_ Aluminum Leg destroyed. 05329_ Grenade Launcher destroyed. 05331_ HV Slug penetrates V8-ELR(M). 05331_ V8-ELR(M) suffers critical hit. 05331_ Destroyed Particle Charger. 05331_ Minigun destroyed. 05334_ WM-GFB(z) emerges from the Twisted Machinery. [Achievement: This Is Interesting...] Map ----- +----------------------------------------------------+ | ?????????????????????????????????????????????????? | | ?????????????????????????????????????????????????? | | ?????????????????????????????????????????????????? | | ?????????????????????????????????????????????????? | | ?????????????????????????????????????????###?????? | | ?????????????????????######????????????###"####??? | | ?????????????????????# #????????????#"#""""#### | | ?????????????????????# #??????????###""" """""# | | ?????????????????????#[ =####??######"#""" """ | | ?????????????????????# = ##""####"##"""""" ""# | | ?????????????????????# #""""##"""""""" "" | | ????????????????????## """"#" "" " | | ????????????????????# ""#" "" | | ????????????????????# """"" "" """ | | ????????????????????#"#"" """" """ """ | | ????????????????????#"""" """""""" | | ????????????????????#"" """""""" | | ????????????????##?#"" "" | | ???????????????##"###"" " " """"" | | ????????????????""#"##"""" "" """""" | | ????????????????#"""#""""" "" | | ????????????????" X""#"#"" z | | ????????????????# """#""""""""" | | ???????????????## """""" """""" "" | | ???????????????" M MM """" | | ???????????????" @MM " | | ???????????????# """""""""""""" m | | ??????????????#""" """###""#""" | | ??????????????##"""""##?#"##"" "" """" | | ??????????????#""#####??####"" """ """" | | ??????????????###??????????##"""""""" """""" | | ????????????????????????????#""""#""" """###" | | ????????????????????????????##"#####" """##?#" | | ?????????????????????????????##?#"""" #"""#?## | | ????????????????????????????????##""" #""##??? | | ???????????????????????????????##"""" ""##???? | | ??????????????????????????????##"#"" ""#????? | | ?????????############????????##"#"" ""###??? | | ?????????"""""""##""#######??#"""" """"#??? | | ##########""""""""""""""""##?#"""" """#??? | | """""""" #""" """ """#??#"" ""#??? | | """""""" #"#" "#####"" "##??? | | #""" """"""""" ""#??? | | """" ##"" """" """""""" """#??? | | """"" """#""" """ "" """"#??? | | """"" ""#"""" """" """##??? | | """"" ""#"""""" """" """#???? | | """" ###" "####"""" """ ""#"???? | | #"#" "##?##""" "" """????? | | """""""" #""" ""#??##"" """????? | +----------------------------------------------------+ Best States ------------- Heat Dissipation 42 Energy Generation 10 Energy Capacity 125 Matter Stores 300 Matter Capacity 300 Sight Range 16 Terrain Scan Density 10 Armor Coverage 150 Evasion (%) 50 Targeting Accuracy 6 Item Schematics ----------------- Minigun | -9/Materials | Scanalyzed Rocket Launcher | -9/Materials | Scanalyzed Riot Gun | -7/Zion | Free Hvy. Riot Gun | -7/Zion | Free Battle Rifle | -7/Zion | Free Battle Cannon | -7/Zion | Free Enh. Flamer | -7/Zion | Free Robot Schematics ------------------ None Fabricated ------------ Nothing Alien Tech Used ----------------- None Achievements -------------- Everything Is Under Control Robot Respite The One This Is Interesting... Challenges ------------ None Game ------ Seed StasisGuidanceUnit Manual? 0 Play Time 01:10:31 Cumulative 22.1 hours Start 2019.12.06 @ 22:14:28 End 2019.12.08 @ 01:45:50 Sessions 3 Manual Loads 0 Difficulty Rogue Special Mode None Game No. 24 Rogue 24 Adventurer 0 Explorer 0 Win Type - Total 0 Types 0/0/0/0/0/0/0 Lore% 25 Gallery% 22 Achievement% 16 Wizard Run 0 Options --------- ASCII 0 Keyboard 0 Movement Mouse Keybinds 0 Fullscreen 2 Font 18/Smallcaps Map View 76x50 Tactical HUD 1 Map Filters NONE Filters NONE Steam 1 RUN: ccc5efa3-eee5-4e49-9d97-b5b343072dbb